[Event "Live Chess"]
[Site "Chess.com"]
[Date "2023.05.20"]
[Round "-"]
[White "domrobson"]
[Black "LiamBellwood"]
[Result "0-1"]
[WhiteElo "1726"]
[BlackElo "2117"]
[TimeControl "300"]
[EndTime "9:25:57 PDT"]
[Termination "LiamBellwood won by resignation"]

1. d4 {[%clk 0:04:58.5]} 1... e6 {[%clk 0:04:59.9]} 2. c4 {[%clk 0:04:57.2]}
2... f5 {[%clk 0:04:59.5]} 3. g3 {[%clk 0:04:54.5]} 3... Nf6 {[%clk 0:04:59.2]}
4. Bg2 {[%clk 0:04:53.8]} 4... Be7 {[%clk 0:04:58.9]} 5. Nf3 {[%clk 0:04:52.1]}
5... O-O {[%clk 0:04:58.6]} 6. O-O {[%clk 0:04:51.6]} 6... d6 {[%clk 0:04:58.1]}
7. b3 {[%clk 0:04:50.5]} 7... a5 {[%clk 0:04:55.9]} 8. Bb2 {[%clk 0:04:49.5]}
8... Ne4 {[%clk 0:04:55.5]} 9. Nbd2 {[%clk 0:04:48]} 9... Nd7 {[%clk 0:04:51.9]}
10. Qc2 {[%clk 0:04:44.3]} 10... Ndf6 {[%clk 0:04:50.4]} 11. Nxe4 {[%clk
0:04:39]} 11... Nxe4 {[%clk 0:04:50.3]} 12. Nd2 {[%clk 0:04:38.2]} 12... d5
{[%clk 0:04:42.9]} 13. cxd5 {[%clk 0:04:36.8]} 13... exd5 {[%clk 0:04:40.9]} 14.
Rac1 {[%clk 0:04:32.7]} 14... Nxd2 {[%clk 0:04:36]} 15. Qxd2 {[%clk 0:04:30.5]}
15... c6 {[%clk 0:04:28.3]} 16. f3 {[%clk 0:04:27.6]} 16... Bg5 {[%clk 0:04:19]}
17. f4 {[%clk 0:04:24.6]} 17... Bf6 {[%clk 0:04:18.6]} 18. Bc3 {[%clk
0:04:14.6]} 18... Re8 {[%clk 0:04:14.7]} 19. Bf3 {[%clk 0:04:12.5]} 19... Qe7
{[%clk 0:03:59.5]} 20. Bxa5 {[%clk 0:04:03.7]} 20... Bxd4+ {[%clk 0:03:46.1]}
21. Qxd4 {[%clk 0:04:01.8]} 21... Rxa5 {[%clk 0:03:45.5]} 22. a4 {[%clk
0:03:55.6]} 22... Qe3+ {[%clk 0:03:43.9]} 23. Qxe3 {[%clk 0:03:54.6]} 23... Rxe3
{[%clk 0:03:43.8]} 24. Rb1 {[%clk 0:03:52.7]} 24... Be6 {[%clk 0:03:37.3]} 25.
Kf2 {[%clk 0:03:46.3]} 25... d4 {[%clk 0:03:36.7]} 26. Rfd1 {[%clk 0:03:43.8]}
26... c5 {[%clk 0:03:13.8]} 27. Rd3 {[%clk 0:03:38.2]} 27... Rxd3 {[%clk
0:03:02.1]} 28. exd3 {[%clk 0:03:36.9]} 28... b5 {[%clk 0:02:58.1]} 29. axb5
{[%clk 0:03:26.5]} 29... Rxb5 {[%clk 0:02:57]} 30. Bd1 {[%clk 0:03:17.6]} 30...
Bd5 {[%clk 0:02:40.8]} 31. Ke2 {[%clk 0:03:08.6]} 31... Kf7 {[%clk 0:02:39.4]}
32. Kd2 {[%clk 0:03:07.9]} 32... h6 {[%clk 0:02:36.4]} 33. Bc2 {[%clk
0:02:56.5]} 33... Rb7 {[%clk 0:02:32.3]} 34. Bd1 {[%clk 0:02:52.3]} 34... g5
{[%clk 0:02:26.5]} 35. Rc1 {[%clk 0:02:49.7]} 35... Rb5 {[%clk 0:02:20.1]} 36.
h4 {[%clk 0:02:40.1]} 36... gxf4 {[%clk 0:02:17.3]} 37. gxf4 {[%clk 0:02:38.9]}
37... Kf6 {[%clk 0:02:00.5]} 38. Rb1 {[%clk 0:02:21.2]} 38... Ke6 {[%clk
0:01:51]} 39. Ra1 {[%clk 0:02:14]} 39... Rb6 {[%clk 0:01:33.6]} 40. Ra3 {[%clk
0:02:06.2]} 40... Kd6 {[%clk 0:01:31.6]} 41. Ke2 {[%clk 0:01:59.7]} 41... Rb7
{[%clk 0:01:29]} 42. Ra6+ {[%clk 0:01:57.6]} 42... Bc6 {[%clk 0:01:28.3]} 43.
Kd2 {[%clk 0:01:52.4]} 43... Kc7 {[%clk 0:01:16.3]} 44. Rxc6+ {[%clk 0:01:49.8]}
44... Kxc6 {[%clk 0:01:15.1]} 45. Bf3+ {[%clk 0:01:49.4]} 45... Kb6 {[%clk
0:01:14.5]} 46. Bxb7 {[%clk 0:01:46.1]} 46... Kxb7 {[%clk 0:01:14.4]} 47. Kc2
{[%clk 0:01:45]} 47... Kb6 {[%clk 0:01:04.8]} 48. Kb2 {[%clk 0:01:42.7]} 48...
Kb5 {[%clk 0:01:04.3]} 49. Ka2 {[%clk 0:01:36.5]} 49... Kb4 {[%clk 0:01:01.4]}
50. Kb2 {[%clk 0:01:26.8]} 50... h5 {[%clk 0:01:00.8]} 51. Kc2 {[%clk
0:01:12.1]} 51... Ka3 {[%clk 0:01:00.1]} 52. Kd1 {[%clk 0:01:06]} 52... Kxb3
{[%clk 0:01:00]} 53. Kd2 {[%clk 0:00:56.3]} 53... Kb2 {[%clk 0:00:59.3]} 54. Ke2
{[%clk 0:00:53.9]} 54... Kc3 {[%clk 0:00:59.2]} 0-1

[Event "Live Chess"]
[Site "Chess.com"]
[Date "2023.05.20"]
[Round "-"]
[White "gmnorfolk"]
[Black "Singapourfeuj"]
[Result "1-0"]
[WhiteElo "2128"]
[BlackElo "2305"]
[TimeControl "300"]
[EndTime "9:26:07 PDT"]
[Termination "gmnorfolk won by checkmate"]

1. d4 {[%clk 0:04:57.2]} 1... Nf6 {[%clk 0:04:58.2]} 2. c4 {[%clk 0:04:55.5]}
2... g6 {[%clk 0:04:56.7]} 3. Nc3 {[%clk 0:04:54]} 3... Bg7 {[%clk 0:04:55.2]}
4. e4 {[%clk 0:04:52]} 4... d6 {[%clk 0:04:54.4]} 5. Be2 {[%clk 0:04:51.7]} 5...
O-O {[%clk 0:04:51.7]} 6. Be3 {[%clk 0:04:50.9]} 6... e5 {[%clk 0:04:50.6]} 7.
d5 {[%clk 0:04:49.1]} 7... c6 {[%clk 0:04:48.6]} 8. h4 {[%clk 0:04:42.9]} 8...
cxd5 {[%clk 0:04:42.4]} 9. cxd5 {[%clk 0:04:41.8]} 9... a5 {[%clk 0:04:40.3]}
10. Qd2 {[%clk 0:04:38.7]} 10... Na6 {[%clk 0:04:38.4]} 11. h5 {[%clk 0:04:37]}
11... Nc5 {[%clk 0:04:35.5]} 12. f3 {[%clk 0:04:32.8]} 12... Nxh5 {[%clk
0:04:32.8]} 13. O-O-O {[%clk 0:04:15.8]} 13... Nf4 {[%clk 0:04:29.3]} 14. g3
{[%clk 0:04:12.1]} 14... Nxe2+ {[%clk 0:04:27.5]} 15. Ngxe2 {[%clk 0:04:12]}
15... f5 {[%clk 0:04:26.2]} 16. Bxc5 {[%clk 0:03:54.1]} 16... dxc5 {[%clk
0:04:23.1]} 17. d6 {[%clk 0:03:52.9]} 17... Be6 {[%clk 0:04:21.6]} 18. Nd5
{[%clk 0:03:47.1]} 18... fxe4 {[%clk 0:04:15.3]} 19. Ne7+ {[%clk 0:03:40.8]}
19... Kf7 {[%clk 0:04:12.5]} 20. Rxh7 {[%clk 0:03:34.6]} 20... Rh8 {[%clk
0:04:04.4]} 21. Rdh1 {[%clk 0:03:15.9]} 21... Rxh7 {[%clk 0:04:01.8]} 22. Rxh7
{[%clk 0:03:14.2]} 22... Ra6 {[%clk 0:04:00.7]} 23. Qh6 {[%clk 0:03:02.4]} 23...
Qxd6 {[%clk 0:03:40.8]} 24. Rxg7+ {[%clk 0:02:51.7]} 24... Ke8 {[%clk
0:03:39.5]} 25. Qh8+ {[%clk 0:02:34.8]} 25... Kd7 {[%clk 0:03:38]} 26. Nf5+
{[%clk 0:02:31.2]} 26... Kc6 {[%clk 0:03:35.4]} 27. Nxd6 {[%clk 0:02:27.8]}
27... Kxd6 {[%clk 0:03:34.6]} 28. fxe4 {[%clk 0:02:23.2]} 28... Kc6 {[%clk
0:03:27.5]} 29. Rxg6 {[%clk 0:02:21.2]} 29... Kb5 {[%clk 0:03:25.9]} 30. Qe8+
{[%clk 0:02:15.9]} 30... Kc4 {[%clk 0:03:22.5]} 31. Qxe6+ {[%clk 0:02:12.1]}
31... Rxe6 {[%clk 0:03:17.5]} 32. Rxe6 {[%clk 0:02:11.2]} 32... Kd3 {[%clk
0:03:16.7]} 33. Rxe5 {[%clk 0:02:06.8]} 33... Kxe2 {[%clk 0:03:15.5]} 34. Rxc5
{[%clk 0:02:05.9]} 34... Kf3 {[%clk 0:03:14.5]} 35. e5 {[%clk 0:02:03.8]} 35...
Kxg3 {[%clk 0:03:12]} 36. e6 {[%clk 0:02:02.8]} 36... Kf3 {[%clk 0:03:09.4]} 37.
e7 {[%clk 0:02:01.9]} 37... Kf2 {[%clk 0:03:08]} 38. e8=Q {[%clk 0:02:00.8]}
38... Kf3 {[%clk 0:03:05.6]} 39. Rc7 {[%clk 0:02:00.3]} 39... Kg4 {[%clk
0:03:04.7]} 40. Rf7 {[%clk 0:01:59.8]} 40... Kh5 {[%clk 0:03:01.9]} 41. Qg8
{[%clk 0:01:59.4]} 41... Kh4 {[%clk 0:03:01.1]} 42. Rh7# {[%clk 0:01:59]} 1-0

[Event "Live Chess"]
[Site "Chess.com"]
[Date "2023.05.20"]
[Round "-"]
[White "seabuck"]
[Black "Ian-Morley"]
[Result "1-0"]
[WhiteElo "1830"]
[BlackElo "1044"]
[TimeControl "300"]
[EndTime "9:26:29 PDT"]
[Termination "seabuck won by resignation"]

1. d4 {[%clk 0:04:58.1]} 1... e5 {[%clk 0:04:58.6]} 2. dxe5 {[%clk 0:04:56.6]}
2... Nc6 {[%clk 0:04:56.8]} 3. Nf3 {[%clk 0:04:55.4]} 3... Qe7 {[%clk
0:04:56.1]} 4. g3 {[%clk 0:04:54.2]} 4... Qb4+ {[%clk 0:04:54]} 5. c3 {[%clk
0:04:49.9]} 5... Qe7 {[%clk 0:04:51.9]} 6. Bf4 {[%clk 0:04:34.7]} 6... d5 {[%clk
0:04:46]} 7. exd6 {[%clk 0:04:29.5]} 7... cxd6 {[%clk 0:04:38.5]} 8. Bg2 {[%clk
0:04:21.7]} 8... Nf6 {[%clk 0:04:35.8]} 9. Nbd2 {[%clk 0:04:18.4]} 9... g6
{[%clk 0:04:33.8]} 10. Nc4 {[%clk 0:04:10.5]} 10... b5 {[%clk 0:04:19.6]} 11.
Nxd6+ {[%clk 0:04:05.6]} 11... Kd8 {[%clk 0:04:07.6]} 12. Nxf7+ {[%clk
0:04:01.3]} 12... Ke8 {[%clk 0:04:00.6]} 13. Nxh8 {[%clk 0:03:46.9]} 13... Bg7
{[%clk 0:03:52.2]} 14. Nxg6 {[%clk 0:03:42.6]} 14... hxg6 {[%clk 0:03:45.6]} 15.
Qd6 {[%clk 0:03:35.1]} 15... Qxd6 {[%clk 0:03:43.8]} 16. Bxd6 {[%clk 0:03:33.2]}
16... Kd7 {[%clk 0:03:42.8]} 17. Bf4 {[%clk 0:03:29]} 17... Nd5 {[%clk
0:03:39.5]} 18. Ne5+ {[%clk 0:03:23.2]} 18... Kc7 {[%clk 0:03:36.3]} 19. Nxc6+
{[%clk 0:03:19]} 19... Kxc6 {[%clk 0:03:34.2]} 20. Rd1 {[%clk 0:03:13.3]} 20...
Be6 {[%clk 0:03:30.1]} 21. O-O {[%clk 0:03:06.6]} 21... Rd8 {[%clk 0:03:24.3]}
22. Bg5 {[%clk 0:03:03.2]} 22... Rd7 {[%clk 0:03:19.3]} 23. e4 {[%clk
0:02:58.7]} 23... Kc5 {[%clk 0:03:08.7]} 24. exd5 {[%clk 0:02:56.1]} 24... Bxd5
{[%clk 0:03:08]} 25. Rxd5+ {[%clk 0:02:53.6]} 25... Rxd5 {[%clk 0:03:07.1]} 26.
Bxd5 {[%clk 0:02:52.6]} 26... Kxd5 {[%clk 0:03:06.4]} 27. Rd1+ {[%clk
0:02:51.6]} 27... Ke4 {[%clk 0:03:05.1]} 28. Kg2 {[%clk 0:02:47.9]} 28... a5
{[%clk 0:03:01.9]} 29. f3+ {[%clk 0:02:44.8]} 29... Kf5 {[%clk 0:02:57.1]} 30.
Rd5+ {[%clk 0:02:41.5]} 30... Ke6 {[%clk 0:02:52.7]} 31. Rxb5 {[%clk 0:02:40.2]}
1-0

[Event "Live Chess"]
[Site "Chess.com"]
[Date "2023.05.20"]
[Round "-"]
[White "hturner40"]
[Black "Supertromp"]
[Result "0-1"]
[WhiteElo "1865"]
[BlackElo "2163"]
[TimeControl "300"]
[EndTime "9:26:47 PDT"]
[Termination "Supertromp won on time"]

1. g3 {[%clk 0:04:57.3]} 1... d5 {[%clk 0:04:58.6]} 2. Nf3 {[%clk 0:04:55.2]}
2... Nf6 {[%clk 0:04:58]} 3. Bg2 {[%clk 0:04:53.9]} 3... g6 {[%clk 0:04:55.3]}
4. O-O {[%clk 0:04:51.8]} 4... Bg7 {[%clk 0:04:54.9]} 5. d4 {[%clk 0:04:50.8]}
5... O-O {[%clk 0:04:54]} 6. c4 {[%clk 0:04:49.8]} 6... dxc4 {[%clk 0:04:44.1]}
7. Na3 {[%clk 0:04:46.5]} 7... Be6 {[%clk 0:04:39.7]} 8. Ng5 {[%clk 0:04:36.1]}
8... Bd5 {[%clk 0:04:21.8]} 9. e4 {[%clk 0:04:23.4]} 9... h6 {[%clk 0:04:20.8]}
10. exd5 {[%clk 0:04:13.6]} 10... hxg5 {[%clk 0:04:19.5]} 11. d6 {[%clk
0:04:08.6]} 11... c6 {[%clk 0:03:33.8]} 12. dxe7 {[%clk 0:03:58.1]} 12... Qxe7
{[%clk 0:03:33.7]} 13. Nxc4 {[%clk 0:03:55.8]} 13... Nd5 {[%clk 0:03:19.6]} 14.
Re1 {[%clk 0:03:48]} 14... Qd8 {[%clk 0:03:17.5]} 15. Qg4 {[%clk 0:03:30.2]}
15... Bf6 {[%clk 0:02:50.9]} 16. Ne5 {[%clk 0:03:10.8]} 16... Kg7 {[%clk
0:02:46.7]} 17. Be3 {[%clk 0:02:36.7]} 17... Nxe3 {[%clk 0:02:33.1]} 18. fxe3
{[%clk 0:02:20.4]} 18... Bxe5 {[%clk 0:02:28.5]} 19. dxe5 {[%clk 0:02:17.9]}
19... Qe7 {[%clk 0:02:26.3]} 20. Qd4 {[%clk 0:01:47.3]} 20... Kg8 {[%clk
0:02:12.9]} 21. Qd6 {[%clk 0:01:43.4]} 21... Re8 {[%clk 0:02:05.8]} 22. Rad1
{[%clk 0:01:35.9]} 22... Na6 {[%clk 0:01:59.7]} 23. Qd7 {[%clk 0:00:58.9]} 23...
Nc5 {[%clk 0:01:50]} 24. Qxe7 {[%clk 0:00:54.2]} 24... Rxe7 {[%clk 0:01:49]} 25.
b4 {[%clk 0:00:35.5]} 25... Na6 {[%clk 0:01:25.1]} 26. b5 {[%clk 0:00:32.4]}
26... cxb5 {[%clk 0:01:23.9]} 27. Rd6 {[%clk 0:00:27.3]} 27... Nc5 {[%clk
0:01:12.5]} 28. Bd5 {[%clk 0:00:25]} 28... Kg7 {[%clk 0:01:06.6]} 29. Rf1 {[%clk
0:00:15.2]} 29... Rf8 {[%clk 0:00:49.6]} 30. Rc1 {[%clk 0:00:13]} 30... b6
{[%clk 0:00:47.7]} 31. Bc6 {[%clk 0:00:06.5]} 31... Rxe5 {[%clk 0:00:43.3]} 32.
Bxb5 {[%clk 0:00:03.9]} 32... Rxe3 {[%clk 0:00:38]} 33. Rf1 {[%clk 0:00:02]}
33... Re6 {[%clk 0:00:29]} 0-1

[Event "Live Chess"]
[Site "Chess.com"]
[Date "2023.05.20"]
[Round "-"]
[White "Fayn02"]
[Black "Demyan7777"]
[Result "0-1"]
[WhiteElo "1019"]
[BlackElo "1626"]
[TimeControl "300"]
[EndTime "9:26:49 PDT"]
[Termination "Demyan7777 won by resignation"]

1. d4 {[%clk 0:04:57.6]} 1... Nf6 {[%clk 0:04:58.2]} 2. Bf4 {[%clk 0:04:56.3]}
2... d5 {[%clk 0:04:57]} 3. Nf3 {[%clk 0:04:55.1]} 3... e6 {[%clk 0:04:56.3]} 4.
e3 {[%clk 0:04:54.2]} 4... Be7 {[%clk 0:04:55.9]} 5. Bd3 {[%clk 0:04:52.6]} 5...
O-O {[%clk 0:04:55]} 6. c3 {[%clk 0:04:51.8]} 6... c5 {[%clk 0:04:54.1]} 7. Nbd2
{[%clk 0:04:47.3]} 7... c4 {[%clk 0:04:48.8]} 8. Bc2 {[%clk 0:04:46.3]} 8... b5
{[%clk 0:04:47.9]} 9. O-O {[%clk 0:04:45.2]} 9... a5 {[%clk 0:04:46.9]} 10. a3
{[%clk 0:04:43.9]} 10... Nc6 {[%clk 0:04:45.4]} 11. Ne5 {[%clk 0:04:41.1]} 11...
Nxe5 {[%clk 0:04:43.5]} 12. Bxe5 {[%clk 0:04:41]} 12... Bb7 {[%clk 0:04:41.6]}
13. Nf3 {[%clk 0:04:39.6]} 13... Nd7 {[%clk 0:04:38]} 14. Qb1 {[%clk 0:04:34.1]}
14... b4 {[%clk 0:04:35.1]} 15. Bxh7+ {[%clk 0:04:32.1]} 15... Kh8 {[%clk
0:04:32.9]} 16. cxb4 {[%clk 0:04:31.3]} 16... axb4 {[%clk 0:04:30.9]} 17. Bc2
{[%clk 0:04:22.5]} 17... bxa3 {[%clk 0:04:26.3]} 18. bxa3 {[%clk 0:04:21]} 18...
Qb6 {[%clk 0:04:23.9]} 19. Qxb6 {[%clk 0:04:19.3]} 19... Nxb6 {[%clk 0:04:22]}
20. a4 {[%clk 0:04:01.1]} 20... f6 {[%clk 0:04:04.8]} 21. Bc7 {[%clk 0:03:33.3]}
21... Nd7 {[%clk 0:04:00.2]} 22. a5 {[%clk 0:03:30.7]} 22... Rfc8 {[%clk
0:03:58.5]} 23. Bb6 {[%clk 0:03:26.2]} 23... Nxb6 {[%clk 0:03:54.6]} 24. axb6
{[%clk 0:03:23.7]} 24... Bd8 {[%clk 0:03:53.5]} 25. Rxa8 {[%clk 0:03:21.7]}
25... Rxa8 {[%clk 0:03:52]} 26. Rb1 {[%clk 0:03:19.9]} 26... Ra6 {[%clk
0:03:50.5]} 27. Nh4 {[%clk 0:03:09.5]} 27... Bxb6 {[%clk 0:03:45.2]} 28. Ng6+
{[%clk 0:03:06.7]} 28... Kg8 {[%clk 0:03:38.7]} 29. Nf4 {[%clk 0:03:01.7]} 29...
Kf7 {[%clk 0:03:36]} 30. Bh7 {[%clk 0:02:55.2]} 30... g5 {[%clk 0:03:31.7]} 31.
Ne2 {[%clk 0:02:49.2]} 31... Bc6 {[%clk 0:03:26.6]} 32. Bc2 {[%clk 0:02:47.9]}
32... Bc7 {[%clk 0:03:24]} 33. Nc3 {[%clk 0:02:46]} 33... Ra3 {[%clk 0:03:21.5]}
34. Ne2 {[%clk 0:02:36.1]} 34... Ra2 {[%clk 0:03:19.8]} 35. Rc1 {[%clk
0:02:33.6]} 35... Bd6 {[%clk 0:03:17.4]} 36. Nc3 {[%clk 0:02:13.3]} 36... Ra3
{[%clk 0:03:09.5]} 37. Bd1 {[%clk 0:02:06.9]} 37... Bb4 {[%clk 0:03:05]} 38. Ne2
{[%clk 0:02:03]} 38... Ra2 {[%clk 0:03:03.4]} 39. Ng3 {[%clk 0:02:00.7]} 39...
Ba3 {[%clk 0:03:00.1]} 40. Rb1 {[%clk 0:01:57.3]} 40... c3 {[%clk 0:02:58.6]}
41. Rb3 {[%clk 0:01:23.7]} 41... c2 {[%clk 0:02:46.1]} 42. Bxc2 {[%clk
0:01:22.7]} 42... Rxc2 {[%clk 0:02:44.1]} 43. Rxa3 {[%clk 0:01:22]} 43... Rc1+
{[%clk 0:02:43.3]} 44. Nf1 {[%clk 0:01:20.2]} 44... Bb5 {[%clk 0:02:42.9]} 45.
Ra7+ {[%clk 0:01:14.5]} 45... Kg6 {[%clk 0:02:40.4]} 46. h3 {[%clk 0:01:05]}
46... Rxf1+ {[%clk 0:02:38.7]} 47. Kh2 {[%clk 0:01:04.7]} 47... Rxf2 {[%clk
0:02:37]} 48. Re7 {[%clk 0:01:03.9]} 48... Bf1 {[%clk 0:02:27]} 49. Rxe6 {[%clk
0:00:57.2]} 49... Rxg2+ {[%clk 0:02:21]} 50. Kh1 {[%clk 0:00:55.6]} 50... Rg3
{[%clk 0:02:19.6]} 51. Kh2 {[%clk 0:00:48.7]} 51... Rxh3+ {[%clk 0:02:17]} 52.
Kg1 {[%clk 0:00:44.6]} 52... Bd3 {[%clk 0:02:15.8]} 53. Kg2 {[%clk 0:00:42.6]}
53... Rh4 {[%clk 0:02:12.4]} 54. Kf3 {[%clk 0:00:41.4]} 54... Be4+ {[%clk
0:02:09.7]} 55. Ke2 {[%clk 0:00:40]} 55... Rh2+ {[%clk 0:02:06.7]} 56. Kf1
{[%clk 0:00:39.2]} 56... Kf5 {[%clk 0:01:59.6]} 57. Kg1 {[%clk 0:00:37.7]} 57...
Rg2+ {[%clk 0:01:57.4]} 58. Kf1 {[%clk 0:00:34.6]} 58... Kxe6 {[%clk 0:01:56.1]}
59. Ke1 {[%clk 0:00:31.6]} 59... g4 {[%clk 0:01:54.9]} 60. Kf1 {[%clk
0:00:30.7]} 60... g3 {[%clk 0:01:53.7]} 0-1

[Event "Live Chess"]
[Site "Chess.com"]
[Date "2023.05.20"]
[Round "-"]
[White "McSlash1"]
[Black "LodeshChess"]
[Result "1-0"]
[WhiteElo "2068"]
[BlackElo "874"]
[TimeControl "300"]
[EndTime "9:26:53 PDT"]
[Termination "McSlash1 won by checkmate"]

1. e4 {[%clk 0:04:59.7]} 1... c6 {[%clk 0:04:59.1]} 2. d4 {[%clk 0:04:58.8]}
2... d5 {[%clk 0:04:58.7]} 3. Nc3 {[%clk 0:04:58.5]} 3... dxe4 {[%clk
0:04:57.2]} 4. Nxe4 {[%clk 0:04:58.4]} 4... Bf5 {[%clk 0:04:55.8]} 5. Ng3 {[%clk
0:04:55.3]} 5... Bg6 {[%clk 0:04:54.8]} 6. h4 {[%clk 0:04:54.9]} 6... h6 {[%clk
0:04:54]} 7. Nf3 {[%clk 0:04:54.5]} 7... Nd7 {[%clk 0:04:52.6]} 8. h5 {[%clk
0:04:52.6]} 8... Bh7 {[%clk 0:04:52.2]} 9. Bd3 {[%clk 0:04:52]} 9... Bxd3 {[%clk
0:04:51.7]} 10. Qd2 {[%clk 0:04:51.9]} 10... e6 {[%clk 0:04:50.1]} 11. Qxd3
{[%clk 0:04:51.4]} 11... Ngf6 {[%clk 0:04:46.9]} 12. Bd2 {[%clk 0:04:49.7]}
12... Bd6 {[%clk 0:04:40]} 13. O-O-O {[%clk 0:04:36]} 13... Bxg3 {[%clk
0:04:29.9]} 14. fxg3 {[%clk 0:04:34]} 14... O-O {[%clk 0:04:28.9]} 15. Qe2
{[%clk 0:04:30.8]} 15... Nb6 {[%clk 0:04:24.4]} 16. Ne5 {[%clk 0:04:25.6]} 16...
Nbd5 {[%clk 0:04:10.5]} 17. g4 {[%clk 0:04:24.3]} 17... Qb6 {[%clk 0:03:54.6]}
18. g5 {[%clk 0:04:17.8]} 18... hxg5 {[%clk 0:03:54.1]} 19. h6 {[%clk
0:04:12.7]} 19... g6 {[%clk 0:03:45.2]} 20. Bxg5 {[%clk 0:04:01]} 20... Kh7
{[%clk 0:03:16.2]} 21. Qf3 {[%clk 0:03:48.9]} 21... Qa5 {[%clk 0:02:41.7]} 22.
a3 {[%clk 0:03:45.1]} 22... Ng8 {[%clk 0:02:12]} 23. c4 {[%clk 0:03:34.3]} 23...
Nc7 {[%clk 0:01:58.9]} 24. Bd2 {[%clk 0:03:26]} 24... Qa4 {[%clk 0:01:39.6]} 25.
Nd7 {[%clk 0:03:15.9]} 25... Qxc4+ {[%clk 0:00:50.8]} 26. Kb1 {[%clk 0:03:13.5]}
26... Nb5 {[%clk 0:00:39.2]} 27. Nf6+ {[%clk 0:03:00.6]} 27... Nxf6 {[%clk
0:00:16.5]} 28. Qxf6 {[%clk 0:03:00.5]} 28... Qd3+ {[%clk 0:00:15.9]} 29. Ka1
{[%clk 0:02:56.5]} 29... Rg8 {[%clk 0:00:13.7]} 30. Qxf7+ {[%clk 0:02:48.1]}
30... Kh8 {[%clk 0:00:13.1]} 31. d5 {[%clk 0:02:43.1]} 31... Qxd5 {[%clk
0:00:11.1]} 32. Bc3+ {[%clk 0:02:41.1]} 32... Rg7 {[%clk 0:00:09.5]} 33. Qxg7#
{[%clk 0:02:39.8]} 1-0

[Event "Live Chess"]
[Site "Chess.com"]
[Date "2023.05.20"]
[Round "-"]
[White "Zeraora719"]
[Black "tomdot"]
[Result "1-0"]
[WhiteElo "1305"]
[BlackElo "224"]
[TimeControl "300"]
[EndTime "9:26:57 PDT"]
[Termination "Zeraora719 won on time"]

1. e4 {[%clk 0:04:56.5]} 1... e5 {[%clk 0:04:57]} 2. Nf3 {[%clk 0:04:54.9]} 2...
Nc6 {[%clk 0:04:55.1]} 3. Bb5 {[%clk 0:04:54.4]} 3... a6 {[%clk 0:04:52.1]} 4.
Ba4 {[%clk 0:04:54]} 4... b5 {[%clk 0:04:49.6]} 5. Bb3 {[%clk 0:04:53.4]} 5...
Bc5 {[%clk 0:04:36.6]} 6. Nc3 {[%clk 0:04:50.4]} 6... b4 {[%clk 0:04:31.8]} 7.
a4 {[%clk 0:04:42.5]} 7... Nf6 {[%clk 0:04:10.6]} 8. O-O {[%clk 0:04:39.7]} 8...
O-O {[%clk 0:04:07.8]} 9. d3 {[%clk 0:04:37.5]} 9... d5 {[%clk 0:03:55.4]} 10.
exd5 {[%clk 0:04:34.1]} 10... Nxd5 {[%clk 0:03:46.2]} 11. Nxd5 {[%clk
0:04:31.8]} 11... Bg4 {[%clk 0:03:21.2]} 12. c4 {[%clk 0:04:24.9]} 12... Re8
{[%clk 0:03:11.6]} 13. Qe1 {[%clk 0:04:20.6]} 13... Bd6 {[%clk 0:02:51.8]} 14.
Nxb4 {[%clk 0:03:53.3]} 14... Nxb4 {[%clk 0:02:46.5]} 15. Bd2 {[%clk 0:03:48]}
15... a5 {[%clk 0:02:43.5]} 16. Bg5 {[%clk 0:03:40.8]} 16... f6 {[%clk
0:02:35.1]} 17. Bd2 {[%clk 0:03:29.1]} 17... Nc2 {[%clk 0:02:33]} 18. Bxc2
{[%clk 0:03:16.8]} 18... e4 {[%clk 0:02:14.6]} 19. Nd4 {[%clk 0:03:12.1]} 19...
e3 {[%clk 0:01:53.8]} 20. Bxe3 {[%clk 0:03:01.7]} 20... Bf4 {[%clk 0:01:51.3]}
21. Nc6 {[%clk 0:02:40]} 21... Qd7 {[%clk 0:01:36.3]} 22. Nxa5 {[%clk
0:02:09.2]} 22... Be2 {[%clk 0:01:18]} 23. Qxe2 {[%clk 0:02:01.1]} 23... Rxa5
{[%clk 0:01:15.5]} 24. b4 {[%clk 0:01:57.2]} 24... Rae5 {[%clk 0:01:11.3]} 25.
a5 {[%clk 0:01:47.5]} 25... Rxe3 {[%clk 0:00:59.7]} 26. Qd2 {[%clk 0:01:31.5]}
26... Qxd3 {[%clk 0:00:34.3]} 27. fxe3 {[%clk 0:01:26.6]} 27... Qxe3+ {[%clk
0:00:29.4]} 28. Qxe3 {[%clk 0:01:24.7]} 28... Bxe3+ {[%clk 0:00:27.3]} 29. Kh1
{[%clk 0:01:19.4]} 29... Re4 {[%clk 0:00:22.8]} 30. a6 {[%clk 0:01:17.9]} 30...
Rxc4 {[%clk 0:00:18.7]} 31. Bd3 {[%clk 0:01:12.9]} 31... Rxb4 {[%clk 0:00:15.9]}
32. a7 {[%clk 0:01:11.1]} 32... Rd4 {[%clk 0:00:13.4]} 33. a8=Q+ {[%clk
0:01:08.4]} 33... Kf7 {[%clk 0:00:05.5]} 34. Qa2+ {[%clk 0:01:02.1]} 34... Kf8
{[%clk 0:00:02.1]} 35. Bxh7 {[%clk 0:00:55.6]} 1-0